[Event "Titled Tuesday Blitz May 2 Early 2023"]
[White "Kornyukov, Alexey"]
[Black "Necula, Iulian"]
[WhiteFideId "4150457"]
[BlackFideId "1232380"]
[WhiteElo "2352"]
[BlackElo "1790"]
[Result "0-1"]
[Round "07"]
[TimeControl "180+2"]
[Date "2023.05.03"]
[WhiteClock "0:00:00"]
[BlackClock "0:00:00"]

1. e4 {[%clk 0:00:01]}  d6 {[%clk 0:00:01]} 2. d4 {[%clk 0:00:01]}  Nf6 {[%clk 0:00:01]} 3. Nc3 {[%clk 0:00:01]}  e5 {[%clk 0:00:01]} 4. f3 {[%clk 0:00:01]}  Nbd7 {[%clk 0:00:01]} 5. Be3 {[%clk 0:00:01]}  Be7 {[%clk 0:00:01]} 6. Qd2 {[%clk 0:00:01]}  c6 {[%clk 0:00:01]} 7. O-O-O {[%clk 0:00:01]}  Qc7 {[%clk 0:00:01]} 8. g4 {[%clk 0:00:01]}  h6 {[%clk 0:00:01]} 9. h4 {[%clk 0:00:01]}  b5 {[%clk 0:00:01]} 10. Nh3 {[%clk 0:00:01]}  Nb6 {[%clk 0:00:01]} 11. d5 {[%clk 0:00:01]}  Nc4 {[%clk 0:00:01]} 12. Bxc4 {[%clk 0:00:01]}  bxc4 {[%clk 0:00:01]} 13. dxc6 {[%clk 0:00:01]}  Qa5 {[%clk 0:00:01]} 14. Nd5 {[%clk 0:00:01]}  Qxd2+ {[%clk 0:00:01]} 15. Rxd2 {[%clk 0:00:01]}  Nxd5 {[%clk 0:00:01]} 16. exd5 {[%clk 0:00:01]}  Bxh4 {[%clk 0:00:01]} 17. Bf2 {[%clk 0:00:01]}  Bf6 {[%clk 0:00:01]} 18. f4 {[%clk 0:00:01]}  Bxg4 {[%clk 0:00:01]} 19. fxe5 {[%clk 0:00:01]}  Bxe5 {[%clk 0:00:01]} 20. Bd4 {[%clk 0:00:01]}  Bf3 {[%clk 0:00:01]} 21. Re1 {[%clk 0:00:01]}  f6 {[%clk 0:00:01]} 22. Bxe5 {[%clk 0:00:01]}  fxe5 {[%clk 0:00:01]} 23. Rf2 {[%clk 0:00:01]}  Bxd5 {[%clk 0:00:01]} 24. c7 {[%clk 0:00:01]}  Kd7 {[%clk 0:00:01]} 25. Rd1 {[%clk 0:00:01]}  Be6 {[%clk 0:00:01]} 26. Ng1 {[%clk 0:00:01]}  Kxc7 {[%clk 0:00:01]} 27. Rg2 {[%clk 0:00:01]}  g5 {[%clk 0:00:01]} 28. Rgd2 {[%clk 0:00:00]}  d5 {[%clk 0:00:01]} 29. Nf3 {[%clk 0:00:00]}  Kd6 {[%clk 0:00:01]} 30. b3 {[%clk 0:00:00]}  c3 {[%clk 0:00:00]} 31. Re2 {[%clk 0:00:00]}  Bg4 {[%clk 0:00:00]} 32. Re3 {[%clk 0:00:00]}  Bxf3 {[%clk 0:00:00]} 33. Rxf3 {[%clk 0:00:00]}  Raf8 {[%clk 0:00:00]} 34. Rxc3 {[%clk 0:00:00]}  Rf2 {[%clk 0:00:00]} 35. Rcd3 {[%clk 0:00:00]}  d4 {[%clk 0:00:00]} 36. c3 {[%clk 0:00:00]}  Rc8 {[%clk 0:00:00]} 37. Kb1 {[%clk 0:00:00]}  Rf4 {[%clk 0:00:00]} 38. cxd4 {[%clk 0:00:00]}  exd4 {[%clk 0:00:00]} 39. Rxd4+ {[%clk 0:00:00]}  Rxd4 {[%clk 0:00:00]} 40. Rxd4+ {[%clk 0:00:00]}  Ke5 {[%clk 0:00:00]} 41. Rd7 {[%clk 0:00:00]}  Rg8 {[%clk 0:00:00]} 42. Rxa7 {[%clk 0:00:00]}  g4 {[%clk 0:00:00]} 43. Re7+ {[%clk 0:00:00]}  Kf4 {[%clk 0:00:00]} 44. Rf7+ {[%clk 0:00:00]}  Ke3 {[%clk 0:00:00]} 45. Re7+ {[%clk 0:00:00]}  Kf2 {[%clk 0:00:00]} 46. Rf7+ {[%clk 0:00:00]}  Kg2 {[%clk 0:00:00]} 47. a4 {[%clk 0:00:00]}  g3 {[%clk 0:00:00]} 48. a5 {[%clk 0:00:00]}  Kh1 {[%clk 0:00:00]} 49. Rf6 {[%clk 0:00:00]}  h5 {[%clk 0:00:00]} 50. Rf5 {[%clk 0:00:00]}  h4 {[%clk 0:00:00]} 51. Rh5 {[%clk 0:00:00]}  Rg4 {[%clk 0:00:00]} 52. Rc5 {[%clk 0:00:00]}  g2 {[%clk 0:00:00]} 53. Rc1+ {[%clk 0:00:00]}  g1=Q {[%clk 0:00:00]} 54. a6 {[%clk 0:00:00]}  Rb4 {[%clk 0:00:00]} 55. Rxg1+ {[%clk 0:00:00]}  Kxg1 {[%clk 0:00:00]} 56. a7 {[%clk 0:00:00]}  Rxb3+ {[%clk 0:00:00]} 57. Ka2 {[%clk 0:00:00]}  Rg3 {[%clk 0:00:00]} 58. a8=Q {[%clk 0:00:00]}  h3 {[%clk 0:00:00]} 59. Qa7+ {[%clk 0:00:00]}  Kg2 {[%clk 0:00:00]} 60. Qb7+ {[%clk 0:00:00]}  Kg1 {[%clk 0:00:00]} 61. Qb6+ {[%clk 0:00:00]}  Kh2 {[%clk 0:00:00]} 62. Qf2+ {[%clk 0:00:00]}  Rg2 {[%clk 0:00:00]} 63. Qxg2+ {[%clk 0:00:00]}  hxg2 {[%clk 0:00:00]} 0-1


[Site "https://www.chess.com"]

[Event "Titled Tuesday Blitz May 2 Early 2023"]
[White "Pasti, Aron"]
[Black "Osiecki, Stanislaw"]
[WhiteFideId "785857"]
[BlackFideId "1102990"]
[WhiteElo "2173"]
[BlackElo "2088"]
[Result "1-0"]
[Round "07"]
[TimeControl "180+2"]
[Date "2023.05.03"]
[WhiteClock "0:00:00"]
[BlackClock "0:00:00"]

1. e4 {[%clk 0:00:01]}  e6 {[%clk 0:00:01]} 2. d4 {[%clk 0:00:01]}  d5 {[%clk 0:00:01]} 3. exd5 {[%clk 0:00:01]}  exd5 {[%clk 0:00:01]} 4. Bd3 {[%clk 0:00:01]}  Bd6 {[%clk 0:00:01]} 5. c3 {[%clk 0:00:01]}  Ne7 {[%clk 0:00:01]} 6. Nf3 {[%clk 0:00:01]}  O-O {[%clk 0:00:01]} 7. Bg5 {[%clk 0:00:01]}  f6 {[%clk 0:00:01]} 8. Bh4 {[%clk 0:00:01]}  Bf5 {[%clk 0:00:01]} 9. O-O {[%clk 0:00:01]}  Qd7 {[%clk 0:00:01]} 10. Re1 {[%clk 0:00:01]}  c6 {[%clk 0:00:01]} 11. Bg3 {[%clk 0:00:01]}  Bxg3 {[%clk 0:00:01]} 12. hxg3 {[%clk 0:00:01]}  Bxd3 {[%clk 0:00:01]} 13. Qxd3 {[%clk 0:00:01]}  Qf5 {[%clk 0:00:01]} 14. Qd1 {[%clk 0:00:01]}  Re8 {[%clk 0:00:01]} 15. Qb3 {[%clk 0:00:01]}  b6 {[%clk 0:00:01]} 16. Nbd2 {[%clk 0:00:01]}  Nd7 {[%clk 0:00:01]} 17. c4 {[%clk 0:00:01]}  Ng6 {[%clk 0:00:01]} 18. Nh4 {[%clk 0:00:01]}  Nxh4 {[%clk 0:00:01]} 19. gxh4 {[%clk 0:00:01]}  dxc4 {[%clk 0:00:01]} 20. Qxc4+ {[%clk 0:00:01]}  Qd5 {[%clk 0:00:01]} 21. Qxd5+ {[%clk 0:00:01]}  cxd5 {[%clk 0:00:01]} 22. Rxe8+ {[%clk 0:00:01]}  Rxe8 {[%clk 0:00:01]} 23. Rc1 {[%clk 0:00:01]}  Re2 {[%clk 0:00:01]} 24. Rc2 {[%clk 0:00:01]}  a5 {[%clk 0:00:01]} 25. Kf1 {[%clk 0:00:01]}  Re7 {[%clk 0:00:01]} 26. Rc8+ {[%clk 0:00:01]}  Kf7 {[%clk 0:00:01]} 27. Nf3 {[%clk 0:00:01]}  Nf8 {[%clk 0:00:01]} 28. Rc6 {[%clk 0:00:01]}  Re6 {[%clk 0:00:01]} 29. Rc7+ {[%clk 0:00:00]}  Re7 {[%clk 0:00:01]} 30. Rc2 {[%clk 0:00:00]}  h6 {[%clk 0:00:01]} 31. a4 {[%clk 0:00:00]}  g5 {[%clk 0:00:01]} 32. hxg5 {[%clk 0:00:00]}  hxg5 {[%clk 0:00:01]} 33. Rc3 {[%clk 0:00:00]}  Ne6 {[%clk 0:00:00]} 34. Rc6 {[%clk 0:00:00]}  g4 {[%clk 0:00:00]} 35. Nh2 {[%clk 0:00:00]}  Nxd4 {[%clk 0:00:00]} 36. Rxb6 {[%clk 0:00:00]}  Nc2 {[%clk 0:00:00]} 37. g3 {[%clk 0:00:00]}  Re1+ {[%clk 0:00:00]} 38. Kg2 {[%clk 0:00:00]}  f5 {[%clk 0:00:00]} 39. Rb5 {[%clk 0:00:00]}  Rd1 {[%clk 0:00:00]} 40. Rxa5 {[%clk 0:00:00]}  Ke6 {[%clk 0:00:00]} 41. Nf1 {[%clk 0:00:00]}  d4 {[%clk 0:00:00]} 42. Rc5 {[%clk 0:00:00]}  d3 {[%clk 0:00:00]} 43. a5 {[%clk 0:00:00]}  Nd4 {[%clk 0:00:00]} 44. Rc4 {[%clk 0:00:00]}  Nf3 {[%clk 0:00:00]} 45. a6 {[%clk 0:00:00]}  Rxf1 {[%clk 0:00:00]} 46. Kxf1 {[%clk 0:00:00]}  Nd2+ {[%clk 0:00:00]} 47. Ke1 {[%clk 0:00:00]}  Nxc4 {[%clk 0:00:00]} 48. a7 {[%clk 0:00:00]}  Nb6 {[%clk 0:00:00]} 49. Kd2 {[%clk 0:00:00]}  Kd5 {[%clk 0:00:00]} 50. Kxd3 {[%clk 0:00:00]}  Kc5 {[%clk 0:00:00]} 51. Ke3 {[%clk 0:00:00]}  Kd5 {[%clk 0:00:00]} 52. Kf4 {[%clk 0:00:00]}  Ke6 {[%clk 0:00:00]} 53. b4 {[%clk 0:00:00]}  Na8 {[%clk 0:00:00]} 54. Kg5 {[%clk 0:00:00]}  Ke5 {[%clk 0:00:00]} 55. Kg6 {[%clk 0:00:00]}  Nb6 {[%clk 0:00:00]} 56. Kg5 {[%clk 0:00:00]}  Ke4 {[%clk 0:00:00]} 57. Kf6 {[%clk 0:00:00]}  Na8 {[%clk 0:00:00]} 58. b5 {[%clk 0:00:00]}  Nb6 {[%clk 0:00:00]} 59. Ke6 {[%clk 0:00:00]}  Na8 {[%clk 0:00:00]} 60. Kd6 {[%clk 0:00:00]}  Kf3 {[%clk 0:00:00]} 61. Kc6 {[%clk 0:00:00]}  Kxf2 {[%clk 0:00:00]} 62. b6 {[%clk 0:00:00]}  Kxg3 {[%clk 0:00:00]} 63. b7 {[%clk 0:00:00]}  f4 {[%clk 0:00:00]} 64. bxa8=Q {[%clk 0:00:00]}  f3 {[%clk 0:00:00]} 65. Qb8+ {[%clk 0:00:00]}  Kg2 {[%clk 0:00:00]} 66. a8=Q {[%clk 0:00:00]}  f2 {[%clk 0:00:00]} 67. Qa2 {[%clk 0:00:00]}  g3 {[%clk 0:00:00]} 68. Qb7 {[%clk 0:00:00]}  Kg1 {[%clk 0:00:00]} 69. Qb6 {[%clk 0:00:00]}  g2 {[%clk 0:00:00]} 70. Qbxf2+ {[%clk 0:00:00]}  Kh1 {[%clk 0:00:00]} 71. Qxg2# {[%clk 0:00:00]} 1-0


[Site "https://www.chess.com"]

[Event "Titled Tuesday Blitz May 2 Early 2023"]
[White "Vargas Rodriguez, Wilver"]
[Black "Seder, Mohammed"]
[WhiteFideId "3509672"]
[BlackFideId "11505567"]
[WhiteElo "2224"]
[BlackElo "1862"]
[Result "0-1"]
[Round "07"]
[TimeControl "180+2"]
[Date "2023.05.03"]
[WhiteClock "0:00:00"]
[BlackClock "0:00:00"]

1. e4 {[%clk 0:00:01]}  e5 {[%clk 0:00:01]} 2. Nf3 {[%clk 0:00:01]}  Nc6 {[%clk 0:00:01]} 3. d4 {[%clk 0:00:01]}  exd4 {[%clk 0:00:01]} 4. Nxd4 {[%clk 0:00:01]}  Bc5 {[%clk 0:00:01]} 5. Be3 {[%clk 0:00:01]}  Qf6 {[%clk 0:00:01]} 6. c3 {[%clk 0:00:01]}  Bb6 {[%clk 0:00:01]} 7. Bc4 {[%clk 0:00:01]}  Nge7 {[%clk 0:00:01]} 8. O-O {[%clk 0:00:01]}  O-O {[%clk 0:00:01]} 9. Na3 {[%clk 0:00:01]}  d6 {[%clk 0:00:01]} 10. Nab5 {[%clk 0:00:01]}  a6 {[%clk 0:00:01]} 11. Nxc6 {[%clk 0:00:01]}  Nxc6 {[%clk 0:00:01]} 12. Nd4 {[%clk 0:00:01]}  Ne5 {[%clk 0:00:01]} 13. Be2 {[%clk 0:00:00]}  Qg6 {[%clk 0:00:01]} 14. Bf3 {[%clk 0:00:00]}  c5 {[%clk 0:00:00]} 15. Bh5 {[%clk 0:00:00]}  Qf6 {[%clk 0:00:00]} 16. f4 {[%clk 0:00:00]}  cxd4 {[%clk 0:00:00]} 17. fxe5 {[%clk 0:00:00]}  dxe3 {[%clk 0:00:00]} 18. exf6 {[%clk 0:00:00]}  e2+ {[%clk 0:00:00]} 19. Kh1 {[%clk 0:00:00]}  exd1=Q {[%clk 0:00:00]} 20. Raxd1 {[%clk 0:00:00]}  g6 {[%clk 0:00:00]} 21. Be2 {[%clk 0:00:00]}  Rd8 {[%clk 0:00:00]} 22. e5 {[%clk 0:00:00]}  dxe5 {[%clk 0:00:00]} 23. Rxd8+ {[%clk 0:00:00]}  Bxd8 {[%clk 0:00:00]} 24. Bc4 {[%clk 0:00:00]}  Be6 {[%clk 0:00:00]} 25. Bxe6 {[%clk 0:00:00]}  fxe6 {[%clk 0:00:00]} 26. g4 {[%clk 0:00:00]}  Kf7 {[%clk 0:00:00]} 27. g5 {[%clk 0:00:00]}  h6 {[%clk 0:00:00]} 28. h4 {[%clk 0:00:00]}  hxg5 {[%clk 0:00:00]} 29. hxg5 {[%clk 0:00:00]}  Bc7 {[%clk 0:00:00]} 30. Kg2 {[%clk 0:00:00]}  Rd8 {[%clk 0:00:00]} 31. Rh1 {[%clk 0:00:00]}  Rd2+ {[%clk 0:00:00]} 32. Kf3 {[%clk 0:00:00]}  Rh2 {[%clk 0:00:00]} 33. Rd1 {[%clk 0:00:00]}  Rh7 {[%clk 0:00:00]} 0-1


[Site "https://www.chess.com"]

[Event "Titled Tuesday Blitz May 2 Early 2023"]
[White "Hartikainen, Jarmo"]
[Black "Thiel, Thomas"]
[WhiteFideId "503134"]
[BlackFideId "4615964"]
[WhiteElo "2108"]
[BlackElo "2234"]
[Result "0-1"]
[Round "07"]
[TimeControl "180+2"]
[Date "2023.05.03"]
[WhiteClock "0:00:00"]
[BlackClock "0:00:00"]

1. e4 {[%clk 0:00:01]}  d5 {[%clk 0:00:01]} 2. exd5 {[%clk 0:00:01]}  Nf6 {[%clk 0:00:01]} 3. d4 {[%clk 0:00:01]}  Nxd5 {[%clk 0:00:01]} 4. c4 {[%clk 0:00:01]}  Nb6 {[%clk 0:00:01]} 5. Nc3 {[%clk 0:00:01]}  e5 {[%clk 0:00:01]} 6. dxe5 {[%clk 0:00:01]}  Qxd1+ {[%clk 0:00:01]} 7. Nxd1 {[%clk 0:00:01]}  Nc6 {[%clk 0:00:01]} 8. Nf3 {[%clk 0:00:01]}  Bg4 {[%clk 0:00:01]} 9. Be2 {[%clk 0:00:01]}  O-O-O {[%clk 0:00:01]} 10. Bf4 {[%clk 0:00:01]}  Bb4+ {[%clk 0:00:01]} 11. Kf1 {[%clk 0:00:01]}  Bxf3 {[%clk 0:00:01]} 12. Bxf3 {[%clk 0:00:01]}  Nxc4 {[%clk 0:00:01]} 13. Bxc6 {[%clk 0:00:01]}  bxc6 {[%clk 0:00:01]} 14. a3 {[%clk 0:00:01]}  Bd2 {[%clk 0:00:01]} 15. Bg3 {[%clk 0:00:00]}  Bh6 {[%clk 0:00:01]} 16. f4 {[%clk 0:00:00]}  Rd2 {[%clk 0:00:01]} 17. Be1 {[%clk 0:00:00]}  Rxd1 {[%clk 0:00:01]} 18. Rxd1 {[%clk 0:00:00]}  Ne3+ {[%clk 0:00:01]} 19. Ke2 {[%clk 0:00:00]}  Nxd1 {[%clk 0:00:01]} 20. Kxd1 {[%clk 0:00:00]}  Bxf4 {[%clk 0:00:01]} 21. Bg3 {[%clk 0:00:00]}  Bxg3 {[%clk 0:00:00]} 22. hxg3 {[%clk 0:00:00]}  Kd7 {[%clk 0:00:00]} 23. Kc2 {[%clk 0:00:00]}  Ke6 {[%clk 0:00:00]} 24. Rf1 {[%clk 0:00:00]}  Rd8 {[%clk 0:00:00]} 25. Kc3 {[%clk 0:00:00]}  Rd5 {[%clk 0:00:00]} 26. Rh1 {[%clk 0:00:00]}  h6 {[%clk 0:00:00]} 27. Kc4 {[%clk 0:00:00]}  Rxe5 {[%clk 0:00:00]} 28. b4 {[%clk 0:00:00]}  Rg5 {[%clk 0:00:00]} 29. Re1+ {[%clk 0:00:00]}  Kd7 {[%clk 0:00:00]} 30. Re3 {[%clk 0:00:00]}  Kd6 {[%clk 0:00:00]} 31. Rf3 {[%clk 0:00:00]}  Rg4+ {[%clk 0:00:00]} 32. Kc3 {[%clk 0:00:00]}  f6 {[%clk 0:00:00]} 33. Rd3+ {[%clk 0:00:00]}  Ke7 {[%clk 0:00:00]} 34. Re3+ {[%clk 0:00:00]}  Kd7 {[%clk 0:00:00]} 35. Kb3 {[%clk 0:00:00]}  Kc8 {[%clk 0:00:00]} 36. Ka4 {[%clk 0:00:00]}  Kb7 {[%clk 0:00:00]} 37. Ka5 {[%clk 0:00:00]}  Rg5+ {[%clk 0:00:00]} 38. Ka4 {[%clk 0:00:00]}  c5 {[%clk 0:00:00]} 39. bxc5 {[%clk 0:00:00]}  Rxc5 {[%clk 0:00:00]} 40. Re7 {[%clk 0:00:00]}  Rg5 {[%clk 0:00:00]} 0-1


[Site "https://www.chess.com"]

[Event "Titled Tuesday Blitz May 2 Early 2023"]
[White "Castillo Pena, Patricia Evarista"]
[Black "Yonal, Timur"]
[WhiteFideId "6412106"]
[BlackFideId "44115725"]
[WhiteElo "1919"]
[BlackElo "1966"]
[Result "0-1"]
[Round "07"]
[TimeControl "180+2"]
[Date "2023.05.03"]
[WhiteClock "0:00:00"]
[BlackClock "0:00:00"]

1. d4 {[%clk 0:00:01]}  d5 {[%clk 0:00:01]} 2. Nf3 {[%clk 0:00:01]}  Nf6 {[%clk 0:00:01]} 3. e3 {[%clk 0:00:01]}  e6 {[%clk 0:00:01]} 4. Bd3 {[%clk 0:00:01]}  Bd6 {[%clk 0:00:01]} 5. b3 {[%clk 0:00:01]}  O-O {[%clk 0:00:01]} 6. Bb2 {[%clk 0:00:01]}  Nbd7 {[%clk 0:00:01]} 7. Nbd2 {[%clk 0:00:01]}  c5 {[%clk 0:00:01]} 8. O-O {[%clk 0:00:01]}  b6 {[%clk 0:00:01]} 9. Ne5 {[%clk 0:00:01]}  Bb7 {[%clk 0:00:01]} 10. f4 {[%clk 0:00:01]}  Ne4 {[%clk 0:00:01]} 11. c4 {[%clk 0:00:01]}  f5 {[%clk 0:00:01]} 12. Qe2 {[%clk 0:00:01]}  Nxd2 {[%clk 0:00:01]} 13. Qxd2 {[%clk 0:00:01]}  Nf6 {[%clk 0:00:01]} 14. Rad1 {[%clk 0:00:00]}  Qe7 {[%clk 0:00:01]} 15. dxc5 {[%clk 0:00:00]}  bxc5 {[%clk 0:00:01]} 16. Qe2 {[%clk 0:00:00]}  Ne4 {[%clk 0:00:01]} 17. Bxe4 {[%clk 0:00:00]}  fxe4 {[%clk 0:00:01]} 18. Rd2 {[%clk 0:00:00]}  Ba6 {[%clk 0:00:01]} 19. Rfd1 {[%clk 0:00:00]}  Bxe5 {[%clk 0:00:00]} 20. Bxe5 {[%clk 0:00:00]}  Rac8 {[%clk 0:00:00]} 21. Qg4 {[%clk 0:00:00]}  dxc4 {[%clk 0:00:00]} 22. Rd7 {[%clk 0:00:00]}  Rf7 {[%clk 0:00:00]} 23. Rxe7 {[%clk 0:00:00]}  Rxe7 {[%clk 0:00:00]} 24. Rd6 {[%clk 0:00:00]}  Bb5 {[%clk 0:00:00]} 25. Rxe6 {[%clk 0:00:00]}  Bd7 {[%clk 0:00:00]} 26. Rxe7 {[%clk 0:00:00]}  Bxg4 {[%clk 0:00:00]} 27. Rxg7+ {[%clk 0:00:00]}  Kf8 {[%clk 0:00:00]} 28. Rxg4 {[%clk 0:00:00]}  cxb3 {[%clk 0:00:00]} 29. axb3 {[%clk 0:00:00]}  c4 {[%clk 0:00:00]} 30. bxc4 {[%clk 0:00:00]}  Rxc4 {[%clk 0:00:00]} 31. Bd4 {[%clk 0:00:00]}  a5 {[%clk 0:00:00]} 32. Rg7 {[%clk 0:00:00]}  Rxd4 {[%clk 0:00:00]} 33. exd4 {[%clk 0:00:00]}  Kxg7 {[%clk 0:00:00]} 34. Kf2 {[%clk 0:00:00]}  a4 {[%clk 0:00:00]} 0-1


[Site "https://www.chess.com"]

[Event "Titled Tuesday Blitz May 2 Early 2023"]
[White "Van Baar, Esper"]
[Black "Sadovsky, Artem"]
[WhiteFideId "1049321"]
[BlackFideId "4155840"]
[WhiteElo "2180"]
[BlackElo "2314"]
[Result "0-1"]
[Round "07"]
[TimeControl "180+2"]
[Date "2023.05.03"]
[WhiteClock "0:00:00"]
[BlackClock "0:00:00"]

1. e4 {[%clk 0:00:01]}  g6 {[%clk 0:00:01]} 2. d4 {[%clk 0:00:01]}  Bg7 {[%clk 0:00:01]} 3. Nc3 {[%clk 0:00:01]}  c6 {[%clk 0:00:01]} 4. Nf3 {[%clk 0:00:01]}  d5 {[%clk 0:00:01]} 5. h3 {[%clk 0:00:01]}  dxe4 {[%clk 0:00:01]} 6. Nxe4 {[%clk 0:00:01]}  Nd7 {[%clk 0:00:01]} 7. Bd3 {[%clk 0:00:01]}  Ngf6 {[%clk 0:00:01]} 8. Nxf6+ {[%clk 0:00:01]}  Nxf6 {[%clk 0:00:01]} 9. c3 {[%clk 0:00:01]}  O-O {[%clk 0:00:01]} 10. O-O {[%clk 0:00:01]}  Qc7 {[%clk 0:00:01]} 11. Re1 {[%clk 0:00:01]}  c5 {[%clk 0:00:01]} 12. dxc5 {[%clk 0:00:01]}  Qxc5 {[%clk 0:00:01]} 13. Be3 {[%clk 0:00:01]}  Qc7 {[%clk 0:00:01]} 14. Bd4 {[%clk 0:00:01]}  Rd8 {[%clk 0:00:01]} 15. Qb3 {[%clk 0:00:01]}  Nd5 {[%clk 0:00:01]} 16. Bc4 {[%clk 0:00:00]}  e6 {[%clk 0:00:01]} 17. Bxg7 {[%clk 0:00:00]}  Kxg7 {[%clk 0:00:01]} 18. Rad1 {[%clk 0:00:00]}  Nb6 {[%clk 0:00:01]} 19. Bf1 {[%clk 0:00:00]}  Rxd1 {[%clk 0:00:01]} 20. Rxd1 {[%clk 0:00:00]}  e5 {[%clk 0:00:01]} 21. Qb4 {[%clk 0:00:00]}  Be6 {[%clk 0:00:01]} 22. a4 {[%clk 0:00:00]}  a5 {[%clk 0:00:00]} 23. Qb5 {[%clk 0:00:00]}  f6 {[%clk 0:00:00]} 24. b3 {[%clk 0:00:00]}  Nd7 {[%clk 0:00:00]} 25. c4 {[%clk 0:00:00]}  Nc5 {[%clk 0:00:00]} 26. Ne1 {[%clk 0:00:00]}  Bd7 {[%clk 0:00:00]} 0-1


[Site "https://www.chess.com"]

[Event "Titled Tuesday Blitz May 2 Early 2023"]
[White "Elissalt Cardenas, Hector"]
[Black "Kuchava, Ana"]
[WhiteFideId "3500632"]
[BlackFideId "13605348"]
[WhiteElo "2202"]
[BlackElo "2001"]
[Result "1-0"]
[Round "07"]
[TimeControl "180+2"]
[Date "2023.05.03"]
[WhiteClock "0:00:00"]
[BlackClock "0:00:00"]

1. c4 {[%clk 0:00:01]}  e6 {[%clk 0:00:01]} 2. Nc3 {[%clk 0:00:01]}  d5 {[%clk 0:00:01]} 3. cxd5 {[%clk 0:00:01]}  exd5 {[%clk 0:00:01]} 4. d4 {[%clk 0:00:01]}  c6 {[%clk 0:00:01]} 5. e3 {[%clk 0:00:01]}  Bf5 {[%clk 0:00:01]} 6. Bd3 {[%clk 0:00:01]}  Bxd3 {[%clk 0:00:01]} 7. Qxd3 {[%clk 0:00:01]}  Nf6 {[%clk 0:00:01]} 8. Nge2 {[%clk 0:00:01]}  Bd6 {[%clk 0:00:01]} 9. f3 {[%clk 0:00:01]}  O-O {[%clk 0:00:01]} 10. Bd2 {[%clk 0:00:01]}  Nbd7 {[%clk 0:00:01]} 11. O-O-O {[%clk 0:00:01]}  c5 {[%clk 0:00:01]} 12. Qf5 {[%clk 0:00:01]}  Nb6 {[%clk 0:00:01]} 13. e4 {[%clk 0:00:01]}  dxe4 {[%clk 0:00:01]} 14. dxc5 {[%clk 0:00:00]}  exf3 {[%clk 0:00:01]} 15. gxf3 {[%clk 0:00:00]}  g6 {[%clk 0:00:01]} 16. Qg5 {[%clk 0:00:00]}  h6 {[%clk 0:00:00]} 17. Qg1 {[%clk 0:00:00]}  Rc8 {[%clk 0:00:00]} 18. cxd6 {[%clk 0:00:00]}  Nc4 {[%clk 0:00:00]} 19. d7 {[%clk 0:00:00]}  Nxd7 {[%clk 0:00:00]} 20. Qd4 {[%clk 0:00:00]}  Nxd2 {[%clk 0:00:00]} 21. Rxd2 {[%clk 0:00:00]}  Nf6 {[%clk 0:00:00]} 22. Qxd8 {[%clk 0:00:00]}  Rfxd8 {[%clk 0:00:00]} 23. Rxd8+ {[%clk 0:00:00]}  Rxd8 {[%clk 0:00:00]} 24. Rd1 {[%clk 0:00:00]}  Re8 {[%clk 0:00:00]} 25. Rd6 {[%clk 0:00:00]}  Kg7 {[%clk 0:00:00]} 26. Kd2 {[%clk 0:00:00]}  Nh5 {[%clk 0:00:00]} 27. Ne4 {[%clk 0:00:00]}  Rc8 {[%clk 0:00:00]} 28. Rd7 {[%clk 0:00:00]}  Rb8 {[%clk 0:00:00]} 29. Nd6 {[%clk 0:00:00]}  Kf6 {[%clk 0:00:00]} 30. Rxb7 {[%clk 0:00:00]}  Rd8 {[%clk 0:00:00]} 31. Rxf7+ {[%clk 0:00:00]}  Ke6 {[%clk 0:00:00]} 32. Rxa7 {[%clk 0:00:00]}  Rxd6+ {[%clk 0:00:00]} 33. Ke3 {[%clk 0:00:00]}  Rb6 {[%clk 0:00:00]} 34. b3 {[%clk 0:00:00]}  Nf6 {[%clk 0:00:00]} 35. Nd4+ {[%clk 0:00:00]}  Kd6 {[%clk 0:00:00]} 36. Rf7 {[%clk 0:00:00]}  Nd5+ {[%clk 0:00:00]} 37. Kd3 {[%clk 0:00:00]}  Nb4+ {[%clk 0:00:00]} 38. Kc4 {[%clk 0:00:00]}  Nxa2 {[%clk 0:00:00]} 39. Rf6+ {[%clk 0:00:00]}  Kc7 {[%clk 0:00:00]} 40. Rxb6 {[%clk 0:00:00]}  Kxb6 {[%clk 0:00:00]} 41. b4 {[%clk 0:00:00]}  Nc1 {[%clk 0:00:00]} 42. Ne6 {[%clk 0:00:00]}  Ne2 {[%clk 0:00:00]} 43. Nc5 {[%clk 0:00:00]}  Ng1 {[%clk 0:00:00]} 44. f4 {[%clk 0:00:00]}  Nf3 {[%clk 0:00:00]} 45. Nd3 {[%clk 0:00:00]}  Nxh2 {[%clk 0:00:00]} 46. Kd5 {[%clk 0:00:00]} 1-0


[Site "https://www.chess.com"]

[Event "Titled Tuesday Blitz May 2 Early 2023"]
[White "Barria Santos, Jose Guilherme"]
[Black "Lakshmi C"]
[WhiteFideId "1939300"]
[BlackFideId "25035347"]
[WhiteElo "2266"]
[BlackElo "1942"]
[Result "1-0"]
[Round "07"]
[TimeControl "180+2"]
[Date "2023.05.03"]
[WhiteClock "0:00:00"]
[BlackClock "0:00:00"]

1. d4 {[%clk 0:00:01]}  Nf6 {[%clk 0:00:00]} 2. c4 {[%clk 0:00:01]}  e6 {[%clk 0:00:00]} 3. Nc3 {[%clk 0:00:01]}  d5 {[%clk 0:00:00]} 4. cxd5 {[%clk 0:00:01]}  exd5 {[%clk 0:00:00]} 5. Bg5 {[%clk 0:00:01]}  Be6 {[%clk 0:00:00]} 6. e3 {[%clk 0:00:01]}  c6 {[%clk 0:00:00]} 7. Bd3 {[%clk 0:00:01]}  Bd6 {[%clk 0:00:00]} 8. Nge2 {[%clk 0:00:01]}  Nbd7 {[%clk 0:00:00]} 9. O-O {[%clk 0:00:01]}  h6 {[%clk 0:00:00]} 10. Bh4 {[%clk 0:00:01]}  Qb6 {[%clk 0:00:00]} 11. Qc2 {[%clk 0:00:01]}  g5 {[%clk 0:00:00]} 12. Bg3 {[%clk 0:00:01]}  Bxg3 {[%clk 0:00:00]} 13. Nxg3 {[%clk 0:00:01]}  h5 {[%clk 0:00:00]} 14. Nf5 {[%clk 0:00:01]}  O-O-O {[%clk 0:00:00]} 15. Nd6+ {[%clk 0:00:01]}  Kb8 {[%clk 0:00:00]} 16. a4 {[%clk 0:00:01]}  Qc7 {[%clk 0:00:00]} 17. Nf5 {[%clk 0:00:01]}  Ng4 {[%clk 0:00:00]} 18. g3 {[%clk 0:00:01]}  h4 {[%clk 0:00:00]} 19. e4 {[%clk 0:00:01]}  hxg3 {[%clk 0:00:00]} 20. fxg3 {[%clk 0:00:01]}  dxe4 {[%clk 0:00:00]} 21. Nxe4 {[%clk 0:00:01]}  Bxf5 {[%clk 0:00:00]} 22. Rxf5 {[%clk 0:00:01]}  Ne3 {[%clk 0:00:00]} 23. Qf2 {[%clk 0:00:01]}  Nxf5 {[%clk 0:00:00]} 24. Qxf5 {[%clk 0:00:01]}  f6 {[%clk 0:00:00]} 25. Rd1 {[%clk 0:00:01]}  Rdf8 {[%clk 0:00:00]} 26. b4 {[%clk 0:00:01]}  Ka8 {[%clk 0:00:00]} 27. b5 {[%clk 0:00:01]}  cxb5 {[%clk 0:00:00]} 28. Qxb5 {[%clk 0:00:01]}  Nb6 {[%clk 0:00:00]} 29. Nc5 {[%clk 0:00:00]}  Qc6 {[%clk 0:00:00]} 30. Be4 {[%clk 0:00:00]}  Qxb5 {[%clk 0:00:00]} 31. Bxb7+ {[%clk 0:00:00]}  Kb8 {[%clk 0:00:00]} 32. axb5 {[%clk 0:00:00]}  Rf7 {[%clk 0:00:00]} 33. Bc6 {[%clk 0:00:00]}  Nc8 {[%clk 0:00:00]} 34. Na6# {[%clk 0:00:00]} 1-0


[Site "https://www.chess.com"]